bitfinex/quotes_BTCUSD_20260101
["timestamp","ask_amount","ask_price","bid_price","bid_amount"]
[1767302699703,0.04905258,88420.0,88408.0,0.01500199]
[1767302701127,0.04905258,88420.0,88408.0,0.0036908]
[1767302701275,0.04905258,88420.0,88409.0,0.01131106]
[1767302702147,0.04905258,88420.0,88408.0,0.01500199]
[1767302702329,0.04905258,88420.0,88409.0,0.01131106]
[1767302703207,0.04905258,88420.0,88408.0,0.01500199]
[1767302703660,0.04905258,88420.0,88408.0,0.0036908]
[1767302703853,0.04905258,88420.0,88409.0,0.01131106]
[1767302704190,0.04905258,88420.0,88408.0,0.0036908]
[1767302704401,0.04905258,88420.0,88408.0,0.01500199]
[1767302704532,0.04905258,88420.0,88408.0,0.0036908]
[1767302704736,0.04905258,88420.0,88408.0,0.02054238]
[1767302704970,0.04905258,88420.0,88408.0,0.01132]
[1767302705179,0.04905258,88420.0,88408.0,0.02263119]
[1767302705412,0.04905258,88420.0,88408.0,0.01132]
[1767302705792,0.04905258,88420.0,88408.0,0.02263119]
[1767302705999,0.04905258,88420.0,88408.0,0.01132]
[1767302706495,0.04905258,88420.0,88408.0,0.02263119]
[1767302707041,0.04905258,88420.0,88408.0,0.01132]
[1767302707441,0.48898046,88420.0,88408.0,0.01132]
[1767302709009,0.48898046,88420.0,88408.0,0.02263119]
[1767302709213,0.48898046,88420.0,88408.0,0.01132]
[1767302709424,0.04905258,88420.0,88408.0,0.01132]
[1767302710034,0.04905258,88420.0,88408.0,0.02263119]
[1767302710194,0.04905258,88420.0,88408.0,0.01132]
[1767302710395,0.04905258,88420.0,88408.0,0.02263119]
[1767302710590,0.04905258,88420.0,88408.0,0.01132]
[1767302710793,0.04905258,88420.0,88409.0,0.01131106]
[1767302711026,0.04905258,88420.0,88408.0,0.02263119]
[1767302711197,0.04905258,88420.0,88408.0,0.07918715]
[1767302711517,0.04905258,88420.0,88408.0,0.01132]
[1767302712138,0.04905258,88420.0,88408.0,0.02263119]
[1767302714902,0.04905258,88420.0,88408.0,0.01132]
[1767302715294,0.04905258,88420.0,88408.0,0.02263119]
[1767302715595,0.04905258,88420.0,88408.0,0.01132]
[1767302715891,0.04905258,88420.0,88408.0,0.02263119]
[1767302716706,0.04905258,88420.0,88408.0,0.01132]
[1767302717018,0.04905258,88420.0,88408.0,0.02263119]
[1767302717175,0.04905258,88420.0,88408.0,0.01132]
[1767302717378,0.04905258,88420.0,88408.0,0.02263119]
[1767302718663,0.04905258,88420.0,88408.0,0.01132]
[1767302719198,0.04905258,88420.0,88408.0,0.02263119]
[1767302719799,0.04905258,88420.0,88409.0,0.01131106]
[1767302720013,0.04905258,88420.0,88408.0,0.02263119]
[1767302721398,0.04905258,88420.0,88409.0,0.01131106]
[1767302721601,0.04905258,88420.0,88408.0,0.02263119]
[1767302721803,0.04905258,88420.0,88409.0,0.01131106]
[1767302722483,0.04905258,88420.0,88408.0,0.02263119]
[1767302722675,0.04905258,88420.0,88409.0,0.01131106]
[1767302723677,0.04905258,88420.0,88408.0,0.02263119]
[1767302723857,0.04905258,88420.0,88409.0,0.01131106]
[1767302724062,0.04905258,88420.0,88408.0,0.02263119]
[1767302724268,0.04905258,88420.0,88410.0,0.01131093]
[1767302724938,0.0001477,88423.0,88420.0,0.000549]
[1767302725136,0.02447244,88422.0,88420.0,0.00048918]
[1767302725354,0.02447244,88422.0,88413.0,0.01131055]
[1767302725589,0.02447244,88422.0,88412.0,0.01131068]
[1767302725803,0.02447244,88422.0,88412.0,0.05818546]
[1767302726157,0.02447244,88422.0,88413.0,0.01131055]
[1767302726975,0.02447244,88422.0,88412.0,0.04687478]
[1767302727181,0.02447244,88422.0,88412.0,0.05818546]
[1767302728222,0.02447244,88422.0,88412.0,0.04687478]
[1767302728578,0.02447244,88422.0,88412.0,0.05818546]
[1767302729178,0.02447244,88422.0,88412.0,0.04687478]
[1767302730521,0.02447244,88422.0,88412.0,0.05818546]
[1767302731840,0.02447244,88422.0,88412.0,0.04687478]
[1767302736231,0.02447244,88422.0,88410.0,0.01131093]
[1767302736467,0.02447244,88422.0,88411.0,0.0113108]
[1767302736881,0.02447244,88422.0,88410.0,0.01131093]
[1767302737783,0.02447244,88422.0,88407.0,0.0581861]
[1767302737990,0.02447244,88422.0,88410.0,0.01131093]
[1767302738736,0.43990157,88420.0,88410.0,0.01131093]
[1767302739700,0.43990157,88420.0,88411.0,0.0113108]
[1767302740691,0.43990157,88420.0,88410.0,0.01131093]
[1767302740894,0.43990157,88420.0,88411.0,0.0113108]
[1767302741549,0.43990157,88420.0,88410.0,0.01131093]
[1767302743423,0.43990157,88420.0,88409.0,0.01131106]
[1767302744253,0.43990157,88420.0,88410.0,0.01131093]
[1767302746245,0.43990157,88420.0,88411.0,0.0113108]
[1767302747659,0.43990157,88420.0,88410.0,0.01131093]
[1767302747866,0.43990157,88420.0,88411.0,0.0113108]
[1767302748233,0.43990157,88420.0,88410.0,0.01131093]
[1767302749212,0.43990157,88420.0,88411.0,0.0113108]
[1767302751949,0.43990157,88420.0,88412.0,0.01131068]
[1767302752373,0.43990157,88420.0,88411.0,0.0113108]
[1767302752756,0.43990157,88420.0,88412.0,0.01131068]
[1767302752989,0.43990157,88420.0,88411.0,0.0113108]
[1767302753190,0.43990157,88420.0,88410.0,0.01131093]
[1767302753818,0.43990157,88420.0,88411.0,0.0113108]
[1767302754628,0.43990157,88420.0,88412.0,0.01131068]
[1767302754827,0.43990157,88420.0,88411.0,0.0113108]
[1767302755032,0.43990157,88420.0,88412.0,0.01131068]
[1767302755747,0.43990157,88420.0,88411.0,0.0113108]
[1767302756129,0.43990157,88420.0,88412.0,0.01131068]
[1767302756312,0.43990157,88422.0,88411.0,0.0113108]
[1767302756651,0.02447287,88421.0,88412.0,0.01131068]
[1767302756867,0.02447287,88421.0,88409.0,0.01131106]
[1767302757162,0.02447287,88421.0,88410.0,0.01131093]
[1767302757991,0.02447287,88421.0,88409.0,0.01131106]
[1767302759028,0.02447287,88421.0,88408.0,0.07918708]
[1767302759275,0.43990157,88420.0,88411.0,0.0113108]
[1767302759436,0.43990157,88420.0,88411.0,0.06112412]
[1767302759838,0.0001477,88423.0,88412.0,0.01131068]
[1767302760083,0.02447287,88422.0,88412.0,0.01131068]
[1767302760285,0.02447287,88422.0,88413.0,0.01131055]
[1767302760669,0.02447287,88422.0,88412.0,0.01131068]
[1767302760852,0.02447287,88422.0,88413.0,0.01131055]
[1767302761058,0.02447287,88422.0,88412.0,0.01131068]
[1767302761279,0.02447287,88422.0,88413.0,0.01131055]
[1767302762170,0.02447287,88422.0,88412.0,0.01131068]
[1767302762365,0.02447287,88422.0,88413.0,0.01131055]
[1767302763402,0.02447287,88422.0,88414.0,0.01131042]
[1767302764158,0.0001477,88423.0,88417.0,0.01131004]
[1767302764355,0.0001477,88423.0,88422.0,0.000489]
[1767302764551,0.0001477,88423.0,88420.0,0.01130965]
[1767302765467,0.0001477,88423.0,88421.0,0.05654705]
[1767302766208,0.0114677,88432.0,88421.0,0.05654705]
[1767302766405,0.0114677,88432.0,88424.0,0.01130914]
[1767302766606,0.0114677,88432.0,88425.0,0.01130901]
[1767302766909,0.0114677,88432.0,88425.0,0.01126637]
[1767302767052,0.01153537,88432.0,88425.0,0.01069636]
[1767302768319,0.01153537,88432.0,88424.0,0.01130914]
[1767302768828,0.01153537,88432.0,88422.0,0.06785584]
[1767302769715,0.01153537,88432.0,88424.0,0.01130914]
[1767302769913,0.01153537,88432.0,88423.0,0.01130927]
[1767302770122,0.01153537,88432.0,88424.0,0.01130914]
[1767302771342,0.01153537,88432.0,88425.0,0.01130901]
[1767302771487,0.01153537,88432.0,88426.0,0.01130889]
[1767302772939,0.01153537,88432.0,88427.0,0.01130876]
[1767302773474,0.01153537,88432.0,88426.0,0.01130889]
[1767302774239,0.01153537,88432.0,88427.0,0.01130876]
[1767302774707,0.01153537,88432.0,88426.0,0.01130889]
[1767302775274,0.01153537,88432.0,88427.0,0.01130876]
[1767302777125,0.01153537,88432.0,88426.0,0.01130889]
[1767302777560,0.01153537,88432.0,88427.0,0.01130876]
[1767302777940,0.01153537,88432.0,88426.0,0.01130889]
[1767302778273,0.01153537,88432.0,88427.0,0.01130876]
[1767302780125,0.01153537,88432.0,88428.0,0.01130863]
[1767302781016,0.01153537,88432.0,88427.0,0.01130876]
[1767302781310,0.01153537,88432.0,88428.0,0.01130863]
[1767302782434,0.01153537,88432.0,88427.0,0.01130876]
[1767302782574,0.01153537,88432.0,88428.0,0.01130863]
[1767302783193,0.00021537,88432.0,88429.0,0.0113085]
[1767302784295,0.00021537,88432.0,88429.0,0.06785086]
[1767302784536,0.00021537,88432.0,88429.0,0.0113085]
[1767302790755,0.00021537,88432.0,88430.0,0.05654189]
[1767302794418,1e-08,88432.0,88431.0,0.0580388]
[1767302804341,1e-08,88432.0,88431.0,0.0574898]
[1767302808933,0.0003477,88441.0,88431.0,0.01132]
[1767302809143,0.0003477,88441.0,88432.0,0.05802692]
[1767302809588,0.0003477,88441.0,88433.0,0.01130799]
[1767302810008,0.0003477,88441.0,88434.0,0.01130786]
[1767302810235,0.0003477,88441.0,88433.0,0.01130799]
[1767302810593,0.0003477,88441.0,88432.0,0.05802692]
[1767302811401,0.0003477,88441.0,88433.0,0.01130799]
[1767302812012,0.0003477,88441.0,88434.0,0.01130786]
[1767302812692,0.0003477,88441.0,88433.0,0.01130799]
[1767302812896,0.0003477,88441.0,88434.0,0.01130786]
[1767302813259,0.0003477,88441.0,88433.0,0.06784754]
[1767302814888,0.0003477,88441.0,88433.0,0.01130799]
[1767302815093,0.0003477,88441.0,88434.0,0.01130786]
[1767302815303,0.0003477,88441.0,88435.0,0.01130774]
[1767302815438,0.00062485,88441.0,88433.0,0.01130799]
[1767302820435,0.00062485,88441.0,88434.0,0.01130786]
[1767302821055,0.00062485,88441.0,88432.0,0.05802692]
[1767302821257,0.00062485,88441.0,88433.0,0.01130799]
[1767302823130,0.00062485,88441.0,88434.0,0.01130786]
[1767302823433,0.00062485,88441.0,88435.0,0.01130774]
[1767302823633,0.00062485,88441.0,88433.0,0.01130799]
[1767302825203,0.00062485,88441.0,88434.0,0.01130786]
[1767302825727,0.00062485,88441.0,88435.0,0.01130774]
[1767302826916,0.00062485,88441.0,88436.0,0.01130761]
[1767302828000,0.00062485,88441.0,88435.0,0.01130774]
[1767302829055,0.00097679,88441.0,88435.0,0.01130774]
[1767302829894,0.00097679,88441.0,88434.0,0.01130786]
[1767302830172,0.00097679,88441.0,88435.0,0.01130774]
[1767302830520,0.00097679,88441.0,88434.0,0.01130786]
[1767302830928,0.00097679,88441.0,88431.0,0.01132]
[1767302831167,0.00097679,88441.0,88433.0,0.01130799]
[1767302833753,0.00097679,88441.0,88432.0,0.01130812]
[1767302833952,0.00097679,88441.0,88433.0,0.01130799]
[1767302838663,0.00097679,88441.0,88434.0,0.01130786]
[1767302839250,0.00097679,88441.0,88433.0,0.01130799]
[1767302839641,0.00097679,88441.0,88434.0,0.01130786]
[1767302840373,0.04857771,88441.0,88431.0,0.01132]
[1767302840690,0.04857771,88441.0,88432.0,0.01130812]
[1767302841002,0.04857771,88441.0,88433.0,0.01130799]
[1767302841154,0.04857771,88441.0,88432.0,0.01130812]
[1767302841339,0.04857771,88441.0,88433.0,0.01130799]
[1767302842605,0.04857771,88441.0,88434.0,0.01130786]
[1767302842806,0.04857771,88441.0,88433.0,0.01130799]
[1767302843965,0.04857771,88441.0,88434.0,0.01130786]
[1767302844501,0.04857771,88441.0,88435.0,0.01130774]
[1767302845360,0.04857771,88441.0,88436.0,0.01130761]
[1767302845533,0.00097679,88441.0,88437.0,0.01130748]
[1767302845734,0.00097679,88441.0,88436.0,0.01130761]
[1767302846859,0.00097679,88441.0,88437.0,0.01130748]
[1767302847462,0.00097679,88441.0,88438.0,0.01132]
[1767302850391,0.00097679,88441.0,88438.0,0.02262735]
[1767302852002,0.00097679,88441.0,88438.0,0.01132]
[1767302852776,0.00097679,88441.0,88438.0,0.02262735]
[1767302853011,0.00097679,88441.0,88438.0,0.01132]
[1767302853992,0.00097679,88441.0,88438.0,0.02262735]
[1767302860102,0.00097679,88441.0,88439.0,0.05653614]
[1767302863946,0.00097679,88441.0,88438.0,0.02262735]
[1767302866834,0.00097679,88441.0,88438.0,0.07916354]
[1767302876508,0.00097679,88441.0,88438.0,0.02207735]
[1767302878062,0.00097679,88441.0,88438.0,0.01077]
[1767302878264,0.00097679,88441.0,88438.0,0.02207735]
[1767302878482,0.00046466,88439.0,88438.0,0.02207735]
[1767302878681,0.00046466,88439.0,88438.0,0.01077]
[1767302887216,0.00046466,88439.0,88428.0,0.01130863]
[1767302887535,0.00097679,88441.0,88419.0,0.22619374]
[1767302887536,0.43963641,88440.0,88432.0,0.01130812]
[1767302887711,0.00097679,88441.0,88433.0,0.01130799]
[1767302887898,0.00097679,88441.0,88432.0,0.01130812]
[1767302888339,0.00097679,88441.0,88433.0,0.01130799]
[1767302889587,0.00097679,88441.0,88432.0,0.01130812]
[1767302889736,0.00097679,88441.0,88433.0,0.01130799]
[1767302890334,0.00097679,88441.0,88434.0,0.01130786]
[1767302891077,0.00097679,88441.0,88433.0,0.01130799]
[1767302891773,0.00097679,88441.0,88432.0,0.01130812]
[1767302893455,0.00097679,88441.0,88432.0,0.06784812]
[1767302893674,0.00097679,88441.0,88433.0,0.01130799]
[1767302894117,0.00097679,88441.0,88434.0,0.01130786]
[1767302894331,0.00097679,88441.0,88431.0,0.02262825]
[1767302894504,0.00045081,88435.0,88422.0,0.0113094]
[1767302894766,0.04634707,88435.0,88426.0,0.01130889]
[1767302894985,0.04634707,88440.0,88426.0,0.01130889]
[1767302895194,0.48598348,88440.0,88426.0,0.01130889]
[1767302895410,0.48598348,88440.0,88426.0,0.05716514]
[1767302895620,0.48598348,88440.0,88427.0,0.01130876]
[1767302895825,0.48598348,88440.0,88428.0,0.01130863]
[1767302898258,0.48598348,88440.0,88429.0,0.01132]
[1767302899381,0.48598348,88440.0,88430.0,0.01132]
[1767302901524,0.48598348,88440.0,88427.0,0.01130876]
[1767302901726,0.48598348,88440.0,88431.0,0.01132]
[1767302901931,0.48598348,88440.0,88427.0,0.01130876]
[1767302902133,0.48598348,88440.0,88432.0,0.01132]
[1767302902346,0.04634707,88440.0,88432.0,0.01132]
[1767302902547,0.04634707,88440.0,88409.0,0.22622111]
[1767302902548,0.04634707,88432.0,88416.0,0.01131017]
[1767302902755,0.01646042,88439.0,88416.0,0.01131017]
[1767302902756,0.43963641,88426.0,88417.0,0.01132]
[1767302902901,0.04634707,88427.0,88417.0,0.02263004]
[1767302903248,0.00039193,88418.0,88417.0,0.01132]
[1767302903386,9.3e-07,88418.0,88417.0,0.01132]
[1767302905417,0.04634707,88427.0,88418.0,0.01130991]
[1767302905867,0.04634707,88427.0,88419.0,0.01130978]
[1767302906446,0.04634707,88427.0,88421.0,0.01130953]
[1767302906648,0.04634707,88427.0,88420.0,0.01130965]
[1767302906834,0.04634707,88427.0,88421.0,0.01130953]
[1767302908655,0.04634707,88427.0,88424.0,0.01130914]
[1767302908881,0.04634707,88427.0,88423.0,0.01130927]
[1767302910566,0.04634707,88427.0,88420.0,0.02262965]
[1767302910567,0.04838566,88423.0,88420.0,0.01132]
[1767302910967,0.04799466,88423.0,88419.0,0.01132]
[1767302912954,0.04799466,88423.0,88419.0,0.010929]
[1767302928450,0.04799466,88429.0,88419.0,0.010929]
[1767302933354,0.04799466,88429.0,88419.0,0.00334746]
[1767302940608,0.04799466,88429.0,88419.0,0.00028861]
[1767302949494,0.04799466,88429.0,88415.0,0.01132]
[1767302950231,0.04799466,88429.0,88416.0,0.01131017]
[1767302951388,0.04799466,88429.0,88415.0,0.02263029]
[1767302951587,0.04799466,88429.0,88416.0,0.01131017]
[1767302954675,0.04799466,88429.0,88415.0,0.02263029]
[1767302955690,0.04799466,88429.0,88415.0,0.01132]
[1767302956581,0.04799466,88429.0,88415.0,0.02263029]
[1767302957184,0.04799466,88429.0,88413.0,0.01131055]
[1767302957185,0.48489874,88425.0,88413.0,0.01132]
[1767302957411,0.04504815,88424.0,88413.0,0.01132]
[1767302957613,0.01132,88429.0,88424.0,0.000549]
[1767302957957,0.01132,88429.0,88415.0,0.06786177]
[1767302958227,0.01132,88429.0,88415.0,0.01131029]
[1767302958607,0.01132,88429.0,88416.0,0.01131017]
[1767302959212,0.01132,88429.0,88415.0,0.01131029]
[1767302959395,0.01132,88429.0,88414.0,0.01131042]
[1767302959575,9e-05,90168.0,88414.0,0.01131042]
[1767302959782,0.01130761,88436.0,88418.0,0.04767587]
[1767302959986,0.43985059,88430.0,88418.0,0.04767587]
[1767302960241,0.01132,88429.0,88418.0,0.04767587]
[1767302960801,0.010771,88429.0,88418.0,0.04767587]
[1767302961541,0.50098229,88440.0,88418.0,0.11553519]
[1767302961697,0.05771306,88439.0,88421.0,0.0589854]
[1767302961897,0.03508584,88438.0,88421.0,0.04761932]
[1767302962232,0.03508584,88437.0,88421.0,0.04761932]
[1767302962409,0.03508584,88436.0,88421.0,0.04761932]
[1767302962613,0.03508584,88435.0,88421.0,0.04761932]
[1767302962819,0.03508584,88434.0,88421.0,0.04761932]
[1767302963015,0.02446664,88433.0,88421.0,0.04761932]
[1767302963244,0.03578664,88432.0,88421.0,0.04761932]
[1767302963446,0.01132,88432.0,88421.0,0.04761932]
[1767302964374,0.43985059,88431.0,88421.0,0.04761932]
[1767302964554,0.43985059,88431.0,88421.0,0.05892885]
[1767302966997,0.01132,88432.0,88421.0,0.05892885]
[1767302967142,0.43985059,88431.0,88421.0,0.05892885]
[1767302967772,0.43985059,88431.0,88422.0,0.0113094]
[1767302968091,0.43985059,88431.0,88421.0,0.05892885]
[1767302968292,0.43985059,88431.0,88421.0,0.04761932]
[1767302968492,0.43985059,88431.0,88421.0,0.05892885]
[1767302969295,0.43985059,88431.0,88421.0,0.04761932]
[1767302969518,0.43985059,88431.0,88421.0,0.05892885]
[1767302969718,0.43985059,88431.0,88421.0,0.03289642]
[1767302972329,0.43985059,88431.0,88421.0,0.03285378]
[1767302973433,0.43985059,88431.0,88420.0,0.01130965]
[1767302974403,0.43985059,88431.0,88419.0,0.01130978]
[1767302974803,0.43985059,88431.0,88418.0,0.01130991]
[1767302975206,0.43985059,88431.0,88419.0,0.01130978]
[1767302975440,0.43985059,88431.0,88417.0,0.05809398]
[1767302975588,0.43985059,88431.0,88418.0,0.01130991]
[1767302975791,0.04557133,88430.0,88416.0,0.01131017]
[1767302975994,0.04557133,88430.0,88417.0,0.01131004]
[1767302978292,0.04557133,88430.0,88416.0,0.01131017]
[1767302978687,0.04557133,88430.0,88417.0,0.01131004]
[1767302979914,0.04557133,88430.0,88418.0,0.01130991]
[1767302980628,0.43986967,88428.0,88418.0,0.01130991]
[1767302981638,0.485441,88430.0,88418.0,0.01130991]
[1767302981838,0.485441,88430.0,88417.0,0.01131004]
[1767302982067,0.485441,88430.0,88418.0,0.01130991]
[1767302982218,0.485441,88430.0,88417.0,0.01131004]
[1767302982432,0.485441,88430.0,88418.0,0.01130991]
[1767302983006,0.485441,88430.0,88417.0,0.01131004]
[1767302983226,0.485441,88430.0,88418.0,0.01130991]
[1767302983632,0.43986967,88430.0,88418.0,0.01130991]
[1767302984437,0.43986967,88430.0,88417.0,0.01131004]
[1767302984640,0.43986967,88430.0,88416.0,0.01131017]
[1767302984868,0.485441,88430.0,88418.0,0.01130991]
[1767302985437,0.485441,88430.0,88419.0,0.00951421]
[1767302985645,0.485441,88430.0,88418.0,0.00552275]
[1767302985830,0.43986967,88428.0,88418.0,0.00552275]
[1767302986221,0.43986967,88428.0,88417.0,0.01131004]
[1767302986444,0.43986967,88428.0,88418.0,0.01130991]
[1767302987079,0.43986967,88428.0,88417.0,0.01131004]
[1767302987508,0.43986967,88428.0,88418.0,0.01130991]
[1767302988675,0.43986967,88428.0,88419.0,0.01130978]
[1767302989951,0.43986967,88428.0,88418.0,0.01130991]
[1767302990142,0.43986967,88428.0,88420.0,0.01130965]
[1767302990481,0.43986967,88428.0,88418.0,0.01130991]
[1767302991400,0.43986967,88428.0,88419.0,0.01130978]
[1767302991600,0.43986967,88428.0,88418.0,0.01130991]
[1767302991856,0.43986967,88428.0,88420.0,0.01130965]
[1767302992060,0.496761,88430.0,88420.0,0.01126701]
[1767302992960,0.496761,88430.0,88419.0,0.01130978]
[1767302994071,0.496761,88430.0,88420.0,0.01130965]
[1767302995436,0.496761,88430.0,88419.0,0.01130978]
[1767302996023,0.496761,88430.0,88418.0,0.01130991]
[1767302996400,0.496761,88430.0,88419.0,0.01130978]
[1767302997126,0.496761,88430.0,88420.0,0.01130965]
[1767302997423,0.496761,88430.0,88419.0,0.01130978]
[1767302998796,0.496761,88430.0,88420.0,0.01130965]
[1767303000261,0.496761,88430.0,88419.0,0.01130978]
[1767303000406,0.496761,88430.0,88418.0,0.01130991]
[1767303000818,0.496761,88430.0,88419.0,0.01130978]
[1767303001223,0.496761,88430.0,88416.0,0.01131017]
[1767303001505,0.496761,88430.0,88418.0,0.01130991]
[1767303001738,0.496761,88430.0,88419.0,0.01130978]
[1767303002017,0.496761,88430.0,88418.0,0.01130991]
[1767303002446,0.496761,88430.0,88419.0,0.01130978]
[1767303002719,0.496761,88430.0,88417.0,0.06785966]
[1767303002720,0.496761,88430.0,88417.0,0.01131004]
[1767303002875,0.496761,88430.0,88418.0,0.01130991]
[1767303003255,0.496761,88430.0,88417.0,0.01131004]
[1767303003422,0.496761,88430.0,88418.0,0.01130991]
[1767303003657,0.496761,88430.0,88417.0,0.01131004]
[1767303004197,0.496761,88430.0,88418.0,0.01130991]
[1767303004380,0.496761,88430.0,88419.0,0.01130978]
[1767303004581,0.496761,88430.0,88418.0,0.01130991]
[1767303004777,0.496761,88430.0,88419.0,0.01130978]
[1767303006617,0.496761,88430.0,88420.0,0.01130965]
[1767303007136,0.496761,88430.0,88418.0,0.01130991]
[1767303007299,0.496761,88430.0,88419.0,0.01130978]
[1767303007952,0.496761,88430.0,88420.0,0.01130965]
[1767303008310,0.496761,88430.0,88419.0,0.01130978]
[1767303008869,0.05689133,88430.0,88420.0,0.01130965]
[1767303009181,0.496761,88430.0,88421.0,0.01130953]
[1767303009367,0.496761,88430.0,88420.0,0.01130965]
[1767303009786,0.496761,88430.0,88419.0,0.01130978]
[1767303010123,0.496761,88430.0,88420.0,0.01130965]
[1767303010488,0.496761,88430.0,88419.0,0.01130978]
[1767303010688,0.496761,88430.0,88420.0,0.01130965]
[1767303011179,0.496761,88430.0,88419.0,0.01130978]
[1767303011379,0.496761,88430.0,88420.0,0.01130965]
[1767303012182,0.496761,88430.0,88418.0,0.01130991]
[1767303012389,0.496761,88430.0,88419.0,0.01130978]
[1767303013152,0.496761,88430.0,88420.0,0.01130965]
[1767303013354,0.496761,88430.0,88421.0,0.01130953]
[1767303013911,0.496761,88430.0,88420.0,0.01130965]
[1767303014101,0.496761,88430.0,88421.0,0.01130953]
[1767303014266,0.496761,88430.0,88420.0,0.01130965]
[1767303016207,0.496761,88430.0,88421.0,0.01130953]
[1767303016758,0.496761,88430.0,88420.0,0.01130965]
[1767303017202,0.496761,88430.0,88421.0,0.01130953]
[1767303017458,0.496761,88430.0,88420.0,0.01130965]
[1767303017722,0.45118967,88430.0,88421.0,0.01130953]
[1767303018569,0.45118967,88430.0,88420.0,0.01130965]
[1767303019859,0.45118967,88430.0,88421.0,0.01130953]
[1767303020435,0.45118967,88430.0,88422.0,0.0113094]
[1767303020651,0.45118967,88430.0,88421.0,0.01130953]
[1767303022028,0.45118967,88430.0,88419.0,0.01130978]
[1767303022499,0.45118967,88430.0,88420.0,0.01130965]
[1767303023001,0.45118967,88430.0,88422.0,0.0113094]
[1767303023234,0.01132,88430.0,88422.0,0.0113094]
[1767303023709,0.01132,88430.0,88421.0,0.01130953]
[1767303024019,0.01132,88430.0,88422.0,0.0113094]
[1767303024379,0.01132,88430.0,88420.0,0.01130965]
[1767303024545,0.01132,88430.0,88420.0,0.01126702]
[1767303024950,0.01132,88430.0,88421.0,0.01130953]
[1767303025151,0.45118967,88430.0,88421.0,0.01130953]
[1767303025659,0.45118967,88430.0,88422.0,0.0113094]
[1767303026660,0.45118967,88430.0,88421.0,0.01130953]
[1767303026992,0.45118967,88430.0,88422.0,0.0113094]
[1767303027562,0.45118967,88430.0,88421.0,0.01130953]
[1767303027863,0.45118967,88430.0,88420.0,0.01130965]
[1767303028282,0.45118967,88430.0,88421.0,0.01130953]
[1767303028433,0.48514877,88430.0,88421.0,0.01130953]
[1767303028636,0.48514877,88430.0,88418.0,0.06785898]
[1767303028815,0.48514877,88430.0,88420.0,0.01130965]
[1767303029024,0.0452791,88430.0,88420.0,0.01130965]
[1767303029371,0.48514877,88430.0,88419.0,0.01130978]
[1767303029734,0.47382877,88430.0,88418.0,0.0095119]
[1767303029915,0.48514877,88430.0,88418.0,0.0095119]
[1767303030316,0.48514877,88430.0,88419.0,0.01130978]
[1767303030533,0.47382877,88430.0,88420.0,0.01130965]
[1767303031034,0.45118967,88430.0,88420.0,0.01130965]
[1767303031248,0.01130978,88429.0,88420.0,0.01130965]
[1767303032747,0.01130978,88429.0,88419.0,0.01130978]
[1767303032883,0.01130978,88429.0,88420.0,0.01130965]
[1767303035263,0.01130978,88429.0,88418.0,0.0095119]
[1767303035417,0.01130978,88429.0,88419.0,0.01130978]
[1767303035841,0.01130978,88429.0,88420.0,0.01130965]
[1767303036239,0.01130978,88429.0,88421.0,0.01130953]
[1767303037587,0.01130978,88429.0,88420.0,0.01130965]
[1767303038269,0.01130978,88429.0,88421.0,0.01130953]
[1767303038666,0.01130978,88429.0,88419.0,0.01130978]
[1767303038870,0.01130978,88429.0,88421.0,0.01130953]
[1767303039213,0.01130978,88429.0,88420.0,0.01130965]
[1767303040808,0.01130978,88429.0,88421.0,0.01130953]
[1767303041605,0.01130978,88429.0,88420.0,0.01130965]
[1767303041901,0.01130978,88429.0,88421.0,0.01130953]
[1767303042112,0.01130978,88429.0,88422.0,0.0113094]
[1767303042253,0.01130978,88429.0,88420.0,0.01130965]
[1767303042906,0.01130978,88429.0,88419.0,0.01130978]
[1767303043116,0.01130978,88429.0,88419.0,0.01126716]
[1767303043513,0.01130978,88429.0,88418.0,0.01130991]
[1767303043706,0.01130978,88429.0,88419.0,0.01130978]
[1767303045532,0.01130978,88429.0,88407.0,0.01131132]
[1767303045533,0.000549,88419.0,88407.0,0.01131132]
[1767303045759,0.000549,88419.0,88410.0,0.01142508]
[1767303045760,0.0461422,88419.0,88410.0,0.01142508]
[1767303045968,0.0461422,88419.0,88410.0,0.00010508]
[1767303046255,0.43985616,88420.0,88399.0,0.10183711]
[1767303046256,0.01131004,88417.0,88399.0,0.03396341]
[1767303046401,0.01131004,88417.0,88393.0,0.01131311]
[1767303046402,0.0455932,88405.0,88388.0,0.04633829]
[1767303046600,0.0455932,88403.0,88392.0,0.00010509]
[1767303046798,0.0455932,88401.0,88392.0,0.01141833]
[1767303047021,0.0455932,88401.0,88394.0,0.01131298]
[1767303047222,0.0455932,88401.0,88396.0,0.01131272]
[1767303047399,0.0455932,88401.0,88397.0,0.0113126]
[1767303047601,0.0455932,88401.0,88394.0,0.01131298]
[1767303047805,0.0455932,88401.0,88395.0,0.01131285]
[1767303048001,0.0455932,88401.0,88397.0,0.0113126]
[1767303048202,0.0450432,88401.0,88397.0,0.0113126]
[1767303048442,0.0450432,88401.0,88398.0,0.01131247]
[1767303050874,0.0455932,88403.0,88399.0,0.01131234]
[1767303051277,0.01132,88404.0,88400.0,0.01131221]
[1767303051457,0.0455932,88403.0,88401.0,0.01131208]
[1767303051780,0.0455932,88403.0,88400.0,0.01131221]
[1767303053077,0.01132,88404.0,88401.0,0.01131208]
[1767303053406,0.01132,88404.0,88400.0,0.01131221]
[1767303053744,0.01132,88404.0,88401.0,0.01131208]
[1767303053943,0.04538062,88403.0,88399.0,0.01131234]
[1767303054164,0.04538062,88403.0,88400.0,0.01131221]
[1767303054584,0.00052029,88418.0,88405.0,0.01131157]
[1767303054585,0.04538062,88417.0,88405.0,0.01131157]
[1767303054778,0.04538062,88417.0,88406.0,0.01131144]
[1767303054779,0.01131247,88409.0,88406.0,0.01131144]
[1767303054962,0.01132,88408.0,88406.0,0.01131144]
[1767303056066,0.01132,88412.0,88409.0,0.01131106]
[1767303056380,0.01132,88412.0,88408.0,0.01131119]
[1767303057168,0.03396471,88414.0,88408.0,0.01131119]
[1767303057364,0.03396471,88414.0,88410.0,0.01131093]
[1767303057663,0.04528471,88414.0,88408.0,0.01131119]
[1767303057842,0.04528471,88414.0,88409.0,0.01131106]
[1767303058455,0.04528471,88414.0,88406.0,0.11604015]
[1767303058456,0.04528471,88414.0,88407.0,0.01131132]
[1767303059248,0.03396471,88414.0,88407.0,0.05948341]
[1767303059428,0.04528471,88414.0,88407.0,0.05948341]
[1767303059831,0.04528471,88414.0,88407.0,0.01131132]
[1767303060030,0.04528471,88414.0,88407.0,0.05948341]
[1767303060435,0.04528471,88414.0,88407.0,0.04817209]
[1767303060753,0.04528471,88414.0,88407.0,0.05948341]
[1767303061378,0.04528471,88414.0,88408.0,0.01131119]
[1767303061555,0.04528471,88414.0,88409.0,0.05948315]
[1767303062615,0.03396471,88414.0,88410.0,0.04817209]
[1767303063429,0.03396471,88414.0,88410.0,0.05948302]
[1767303063639,0.03396471,88414.0,88410.0,0.04817209]
[1767303064162,0.000549,88410.0,88404.0,0.04817209]
[1767303064329,0.000549,88410.0,88405.0,0.05655788]
[1767303064507,0.03396471,88414.0,88408.0,0.04817209]